fUSD/lending_fUSD_20250113
["ID","MTS","AMOUNT","RATE_DAILY","PERIOD"]
[348766125,1736776249802,-500.0,0.00010817,2]
[348766126,1736776249811,-500.0,0.00010817,2]
[348766127,1736776249821,-903.99,0.00010817,2]
[348766128,1736776249831,-703.43,0.00010817,2]
[348766129,1736776249841,-946.03,0.00010817,2]
[348766130,1736776249850,-1295.35,0.00010817,2]
[348766131,1736776249860,-575.35,0.00010817,2]
[348766132,1736776249870,-500.0,0.00010817,2]
[348766133,1736776249880,-544.9,0.00010817,2]
[348766134,1736776249889,-1654.45,0.00010817,2]
[348766135,1736776249899,-1221.37,0.00010817,2]
[348766136,1736776249909,-1929.43,0.00010817,2]
[348766137,1736776249918,-500.0,0.00010817,2]
[348766138,1736776249927,-1057.32,0.00010817,2]
[348766139,1736776249937,-500.0,0.00010817,2]
[348766140,1736776249946,-735.37,0.00010817,2]
[348766141,1736776249955,-500.0,0.00010817,2]
[348766142,1736776249965,-1529.81,0.00010817,2]
[348766143,1736776249974,-918.13,0.00010817,2]
[348766144,1736776249983,-993.5,0.00010817,2]
[348766145,1736776249993,-701.63,0.00010817,2]
[348766146,1736776250003,-500.0,0.00010817,2]
[348766147,1736776250012,-500.0,0.00010817,2]
[348766148,1736776250022,-1208.05,0.00010817,2]
[348766149,1736776250031,-500.0,0.00010817,2]
[348766150,1736776250047,-1040.14,0.00010817,2]
[348766151,1736776250056,-500.0,0.00010817,2]
[348766152,1736776250065,-500.0,0.00010817,2]
[348766153,1736776250075,-654.85,0.00010817,2]
[348766154,1736776250084,-876.4,0.00010817,2]
[348766155,1736776250094,-500.0,0.00010817,2]
[348766156,1736776250105,-543.55,0.00010817,2]
[348766157,1736776250117,-1479.01,0.00010817,2]
[348766158,1736776250127,-500.0,0.00010817,2]
[348766159,1736776250136,-1079.21,0.00010817,2]
[348766160,1736776250146,-500.0,0.00010817,2]
[348766161,1736776250156,-500.0,0.00010818,2]
[348766162,1736776250165,-500.0,0.00010818,2]
[348766163,1736776250175,-500.0,0.00010818,2]
[348766164,1736776250186,-500.0,0.00010818,2]
[348766165,1736776250195,-500.0,0.00010818,2]
[348766166,1736776250205,-500.0,0.00010818,2]
[348766167,1736776250214,-500.0,0.00010818,2]
[348766168,1736776250224,-500.0,0.00010818,2]
[348766169,1736776250233,-500.0,0.00010818,2]
[348766170,1736776250242,-500.0,0.00010818,2]
[348766171,1736776250251,-462.03637795,0.00010818,2]
[348766172,1736776250261,-500.0,0.00010818,2]
[348766173,1736776250271,-500.0,0.00010818,2]
[348766174,1736776250280,-500.0,0.00010818,2]
[348766175,1736776250291,-500.0,0.00010818,2]
[348766176,1736776250300,-500.0,0.00010818,2]
[348766177,1736776250310,-500.0,0.00010818,2]
[348766178,1736776250319,-500.0,0.00010818,2]
[348766179,1736776250329,-500.0,0.00010818,2]
[348766180,1736776250339,-500.0,0.00010818,2]
[348766181,1736776250348,-500.0,0.00010818,2]
[348766182,1736776250357,-718.94,0.00010818,2]
[348766183,1736776250367,-158.4,0.00010818,2]
[348766184,1736776250376,-500.0,0.00010818,2]
[348766185,1736776250385,-3474.46,0.00010818,2]
[348766186,1736776250394,-500.0,0.00010818,2]
[348766187,1736776250403,-886.08,0.00010818,2]
[348766188,1736776250413,-500.0,0.00010818,2]
[348766189,1736776250422,-500.0,0.00010818,2]
[348766190,1736776250431,-789.13,0.00010818,2]
[348766191,1736776250440,-896.88,0.00010818,2]
[348766192,1736776250450,-965.98,0.00010818,2]
[348766193,1736776250460,-1512.56,0.00010818,2]
[348766194,1736776250469,-500.0,0.00010818,2]
[348766195,1736776250478,-500.0,0.00010818,2]
[348766196,1736776250487,-1258.56,0.00010818,2]
[348766197,1736776250496,-2572.0,0.00010818,2]
[348766198,1736776250506,-500.0,0.00010818,2]
[348766199,1736776250516,-500.0,0.00010818,2]
[348766200,1736776250525,-761.07,0.00010818,2]
[348766201,1736776250534,-1619.16,0.00010818,2]
[348766202,1736776250546,-500.0,0.00010818,2]
[348766203,1736776250556,-500.0,0.00010818,2]
[348766204,1736776250566,-1219.72,0.00010818,2]
[348766205,1736776250575,-4519.27,0.00010818,2]
[348766206,1736776250584,-882.41,0.00010818,2]
[348766207,1736776250594,-1086.13,0.00010818,2]
[348766208,1736776250604,-542.09,0.00010818,2]
[348766209,1736776250613,-500.0,0.00010818,2]
[348766210,1736776250623,-2653.16,0.00010818,2]
[348766211,1736776250632,-500.0,0.00010819,2]
[348766212,1736776250642,-500.0,0.00010819,2]
[348766213,1736776250651,-500.0,0.00010819,2]
[348766214,1736776250662,-500.0,0.00010819,2]
[348766215,1736776250672,-500.0,0.00010819,2]
[348766216,1736776250681,-500.0,0.00010819,2]
[348766217,1736776250691,-500.0,0.00010819,2]
[348766218,1736776250700,-500.0,0.00010819,2]
[348766219,1736776250709,-533.11,0.00010819,2]
[348766220,1736776250719,-500.0,0.00010819,2]
[348766221,1736776250728,-500.0,0.00010819,2]
[348766222,1736776250737,-575.22,0.00010819,2]
[348766223,1736776250746,-500.0,0.00010819,2]
[348766224,1736776250756,-500.0,0.00010819,2]
[348766225,1736776250765,-372.71,0.00010819,2]
[348766226,1736776250774,-500.0,0.00010819,2]
[348766227,1736776250783,-500.0,0.00010819,2]
[348766228,1736776250794,-500.0,0.00010819,2]
[348766229,1736776250803,-631.75,0.00010819,2]
[348766230,1736776250813,-500.0,0.00010819,2]
[348766231,1736776250822,-500.0,0.00010819,2]
[348766232,1736776250831,-500.0,0.00010819,2]
[348766233,1736776250840,-544.1,0.00010819,2]
[348766234,1736776250850,-500.0,0.00010819,2]
[348766235,1736776250859,-500.0,0.00010819,2]
[348766236,1736776250868,-527.28,0.00010819,2]
[348766237,1736776250877,-500.0,0.00010819,2]
[348766238,1736776250886,-500.0,0.00010819,2]
[348766239,1736776250895,-500.0,0.00010819,2]
[348766240,1736776250904,-265.7432881,0.00010819,2]
[348766241,1736776250913,-500.0,0.00010819,2]
[348766242,1736776250922,-613.61,0.00010819,2]
[348766243,1736776250931,-500.0,0.00010819,2]
[348766244,1736776250940,-500.0,0.00010819,2]
[348766245,1736776250950,-500.0,0.00010819,2]
[348766246,1736776250959,-500.0,0.00010819,2]
[348766247,1736776250969,-500.0,0.00010819,2]
[348766248,1736776250978,-277.2,0.00010819,2]
[348766249,1736776250987,-500.0,0.00010819,2]
[348766250,1736776250996,-525.92,0.00010819,2]
[348766251,1736776251004,-500.0,0.00010819,2]
[348766252,1736776251014,-500.0,0.00010819,2]
[348766253,1736776251023,-500.0,0.00010819,2]
[348766254,1736776251034,-500.0,0.00010819,2]
[348766255,1736776251045,-500.0,0.00010819,2]
[348766256,1736776251055,-500.0,0.00010819,2]
[348766257,1736776251064,-500.0,0.00010819,2]
[348766258,1736776251074,-500.0,0.00010819,2]
[348766259,1736776251082,-500.0,0.00010819,2]
[348766260,1736776251091,-500.0,0.00010819,2]
[348766261,1736776251101,-514.31,0.00010819,2]
[348766262,1736776251115,-500.0,0.00010819,2]
[348766263,1736776251124,-500.0,0.00010819,2]
[348766264,1736776251134,-500.0,0.00010819,2]
[348766265,1736776251143,-627.10087218,0.00010819,2]
[348766266,1736776251153,-500.0,0.00010819,2]
[348766267,1736776251162,-500.0,0.00010819,2]
[348766268,1736776251171,-500.0,0.00010819,2]
[348766269,1736776251181,-500.0,0.00010819,2]
[348766270,1736776251190,-500.0,0.00010819,2]
[348766271,1736776251199,-233.80012825,0.0001082,2]
[348766272,1736776251208,-491.96623775,0.0001082,2]
[348766273,1736776251217,-500.0,0.0001082,2]
[348766274,1736776251227,-500.0,0.0001082,2]
[348766275,1736776251236,-349.95,0.0001082,2]
[348766276,1736776251245,-500.0,0.0001082,2]
[348766277,1736776251256,-500.0,0.0001082,2]
[348766278,1736776251265,-500.0,0.0001082,2]
[348766279,1736776251274,-500.0,0.0001082,2]
[348766280,1736776251283,-500.0,0.0001082,2]
[348766281,1736776251295,-500.0,0.0001082,2]
[348766282,1736776251304,-1116.54,0.00010821,2]
[348766283,1736776251313,-1473.48,0.00010821,2]
[348766284,1736776251322,-1006.4,0.00010821,2]
[348766285,1736776251331,-773.79,0.00010821,2]
[348766286,1736776251341,-687.73825975,0.00010852,2]
[348766287,1736776251350,-500.0,0.00010873,2]
[348766288,1736776251359,-687.73825975,0.00010966,2]
[348766289,1736776251368,-1936.63,0.00010991,2]
[348766290,1736776251377,-1858.87,0.00010991,2]
[348766291,1736776251386,-500.0,0.00010991,2]
[348766292,1736776251395,-3000.0,0.00011,2]
[348766293,1736776251405,-687.73825975,0.00011079,2]
[348766294,1736776251414,-705.48,0.0001109,2]
[348766295,1736776251425,-500.0,0.0001109,2]
[348766296,1736776251434,-685.75,0.0001109,2]
[348766297,1736776251443,-500.0,0.00011091,2]
[348766298,1736776251453,-1565.28,0.00011091,2]
[348766299,1736776251462,-500.0,0.00011091,2]
[348766300,1736776251470,-500.0,0.00011091,2]
[348766301,1736776251480,-500.0,0.00011091,2]
[348766302,1736776251489,-1938.55,0.00011091,2]
[348766303,1736776251499,-614.34,0.00011091,2]
[348766304,1736776251508,-500.0,0.00011091,2]
[348766305,1736776251517,-652.92,0.00011091,2]
[348766306,1736776251526,-893.86,0.00011091,2]
[348766307,1736776251535,-902.95,0.00011091,2]
[348766308,1736776251547,-596.76,0.00011091,2]
[348766309,1736776251556,-1883.33,0.00011091,2]
[348766310,1736776251565,-1014.93,0.00011091,2]
[348766311,1736776251574,-1197.82,0.00011091,2]
[348766312,1736776251584,-1917.84,0.00011091,2]
[348766313,1736776251592,-1454.9,0.00011091,2]
[348766314,1736776251601,-2653.24,0.00011091,2]
[348766315,1736776251610,-934.46,0.00011091,2]
[348766316,1736776251619,-500.0,0.00011091,2]
[348766317,1736776251629,-835.85,0.00011091,2]
[348766318,1736776251638,-500.0,0.00011091,2]
[348766319,1736776251647,-500.0,0.00011091,2]
[348766320,1736776251656,-903.99,0.00011091,2]
[348766321,1736776251665,-703.43,0.00011091,2]
[348766322,1736776251674,-946.03,0.00011091,2]
[348766323,1736776251683,-1295.35,0.00011091,2]
[348766324,1736776251692,-575.35,0.00011091,2]
[348766325,1736776251701,-544.9,0.00011091,2]
[348766326,1736776251710,-1654.45,0.00011091,2]
[348766327,1736776251719,-1221.37,0.00011091,2]
[348766328,1736776251730,-1929.43,0.00011091,2]
[348766329,1736776251739,-500.0,0.00011091,2]
[348766330,1736776251748,-1057.32,0.00011091,2]
[348766331,1736776251757,-500.0,0.00011091,2]
[348766332,1736776251767,-735.37,0.00011091,2]
[348766333,1736776251776,-500.0,0.00011091,2]
[348766334,1736776251785,-1529.81,0.00011091,2]
[348766335,1736776251797,-918.13,0.00011091,2]
[348766336,1736776251807,-993.5,0.00011091,2]
[348766337,1736776251816,-701.63,0.00011091,2]
[348766338,1736776251825,-500.0,0.00011091,2]
[348766339,1736776251835,-500.0,0.00011091,2]
[348766340,1736776251846,-1208.05,0.00011091,2]
[348766341,1736776251856,-500.0,0.00011091,2]
[348766342,1736776251867,-1040.14,0.00011091,2]
[348766343,1736776251877,-500.0,0.00011091,2]
[348766344,1736776251886,-319.74565847,0.00011091,2]
[348766345,1736776251895,-654.85,0.00011091,2]
[348766346,1736776251905,-876.4,0.00011091,2]
[348766347,1736776251914,-500.0,0.00011091,2]
[348766348,1736776251923,-543.55,0.00011091,2]
[348766349,1736776251933,-1479.01,0.00011091,2]
[348766350,1736776251942,-500.0,0.00011091,2]
[348766351,1736776251951,-1079.21,0.00011091,2]
[348766352,1736776251961,-500.0,0.00011092,2]
[348766353,1736776251970,-500.0,0.00011092,2]
[348766354,1736776251980,-500.0,0.00011092,2]
[348766355,1736776251989,-500.0,0.00011092,2]
[348766356,1736776251998,-500.0,0.00011092,2]
[348766357,1736776252008,-500.0,0.00011092,2]
[348766358,1736776252017,-500.0,0.00011092,2]
[348766359,1736776252026,-500.0,0.00011092,2]
[348766360,1736776252035,-500.0,0.00011092,2]
[348766361,1736776252046,-625.35,0.00011092,2]
[348766362,1736776252055,-500.0,0.00011092,2]
[348766363,1736776252065,-500.0,0.00011092,2]
[348766364,1736776252074,-500.0,0.00011092,2]
[348766365,1736776252083,-500.0,0.00011092,2]
[348766366,1736776252092,-500.0,0.00011092,2]
[348766367,1736776252102,-500.0,0.00011092,2]
[348766368,1736776252115,-500.0,0.00011092,2]
[348766369,1736776252124,-500.0,0.00011092,2]
[348766370,1736776252133,-500.0,0.00011092,2]
[348766371,1736776252143,-500.0,0.00011092,2]
[348766372,1736776252152,-718.94,0.00011092,2]
[348766373,1736776252161,-500.0,0.00011092,2]
[348766374,1736776252171,-3474.46,0.00011092,2]
[348766375,1736776252181,-500.0,0.00011092,2]
[348766376,1736776252191,-500.0,0.00011092,2]
[348766377,1736776252201,-886.08,0.00011092,2]
[348766378,1736776252210,-500.0,0.00011092,2]
[348766379,1736776252219,-789.13,0.00011092,2]
[348766380,1736776252229,-896.88,0.00011092,2]
[348766381,1736776252238,-1512.56,0.00011092,2]
[348766382,1736776252248,-500.0,0.00011092,2]
[348766383,1736776252258,-500.0,0.00011092,2]
[348766384,1736776252268,-1258.56,0.00011092,2]
[348766385,1736776252277,-2572.0,0.00011092,2]
[348766386,1736776252287,-500.0,0.00011092,2]
[348766387,1736776252298,-500.0,0.00011092,2]
[348766388,1736776252307,-761.07,0.00011092,2]
[348766389,1736776252317,-1619.16,0.00011092,2]
[348766390,1736776252327,-500.0,0.00011092,2]
[348766391,1736776252336,-500.0,0.00011092,2]
[348766392,1736776252346,-1219.72,0.00011092,2]
[348766393,1736776252356,-4519.27,0.00011092,2]
[348766394,1736776252365,-882.41,0.00011092,2]
[348766395,1736776252376,-1086.13,0.00011092,2]
[348766396,1736776252386,-542.09,0.00011092,2]
[348766397,1736776252395,-500.0,0.00011092,2]
[348766398,1736776252404,-2653.16,0.00011092,2]
[348766399,1736776252414,-500.0,0.00011093,2]
[348766400,1736776252424,-500.0,0.00011093,2]
[348766401,1736776252433,-500.0,0.00011093,2]
[348766402,1736776252442,-500.0,0.00011093,2]
[348766403,1736776252451,-500.0,0.00011093,2]
[348766404,1736776252460,-500.0,0.00011093,2]
[348766405,1736776252469,-500.0,0.00011093,2]
[348766406,1736776252478,-500.0,0.00011093,2]
[348766407,1736776252487,-533.11,0.00011093,2]
[348766408,1736776252497,-500.0,0.00011093,2]
[348766409,1736776252506,-500.0,0.00011093,2]
[348766410,1736776252516,-575.22,0.00011093,2]
[348766411,1736776252525,-293.48468154,0.00011093,2]
[348766412,1736776252535,-500.0,0.00011093,2]
[348766413,1736776252547,-500.0,0.00011093,2]
[348766414,1736776252557,-500.0,0.00011093,2]
[348766415,1736776252567,-500.0,0.00011093,2]
[348766416,1736776252577,-631.75,0.00011093,2]
[348766417,1736776252587,-500.0,0.00011093,2]
[348766418,1736776252596,-500.0,0.00011093,2]
[348766419,1736776252606,-500.0,0.00011093,2]
[348766420,1736776252616,-544.1,0.00011093,2]
[348766421,1736776252626,-500.0,0.00011093,2]
[348766422,1736776252636,-500.0,0.00011093,2]
[348766423,1736776252654,-527.28,0.00011093,2]
[348766424,1736776252667,-500.0,0.00011093,2]
[348766425,1736776252676,-500.0,0.00011093,2]
[348766426,1736776252686,-500.0,0.00011093,2]
[348766427,1736776252696,-500.0,0.00011093,2]
[348766428,1736776252706,-613.61,0.00011093,2]
[348766429,1736776252717,-500.0,0.00011093,2]
[348766430,1736776252727,-500.0,0.00011093,2]
[348766431,1736776252738,-500.0,0.00011093,2]
[348766432,1736776252750,-500.0,0.00011093,2]
[348766433,1736776252761,-500.0,0.00011093,2]
[348766434,1736776252772,-525.92,0.00011093,2]
[348766435,1736776252781,-531.84119353,0.00011093,2]
[348766436,1736776252791,-500.0,0.00011093,2]
[348766437,1736776252801,-500.0,0.00011093,2]
[348766438,1736776252811,-500.0,0.00011093,2]
[348766439,1736776252822,-500.0,0.00011093,2]
[348766440,1736776252831,-500.0,0.00011093,2]
[348766441,1736776252841,-500.0,0.00011093,2]
[348766442,1736776252851,-514.31,0.00011093,2]
[348766443,1736776252861,-500.0,0.00011093,2]
[348766444,1736776252871,-500.0,0.00011093,2]
[348766445,1736776252881,-500.0,0.00011093,2]
[348766446,1736776252891,-500.0,0.00011093,2]
[348766447,1736776252901,-500.0,0.00011093,2]
[348766448,1736776252911,-500.0,0.00011093,2]
[348766449,1736776252921,-500.0,0.00011093,2]
[348766450,1736776252931,-500.0,0.00011093,2]
[348766451,1736776252940,-500.0,0.00011094,2]
[348766452,1736776252950,-469.68689359,0.00011094,2]
[348766453,1736776252960,-500.0,0.00011094,2]
[348766454,1736776252969,-500.0,0.00011094,2]
[348766455,1736776252979,-500.0,0.00011094,2]
[348766456,1736776252989,-500.0,0.00011094,2]
[348766457,1736776252999,-500.0,0.00011094,2]
[348766458,1736776253009,-500.0,0.00011094,2]
[348766459,1736776253019,-1116.54,0.00011095,2]
[348766460,1736776253030,-1473.48,0.00011095,2]
[348766461,1736776253040,-1006.4,0.00011095,2]
[348766462,1736776253050,-773.79,0.00011095,2]
[348766463,1736776253060,-1069.82645234,0.00011099,2]
[348766464,1736776253070,-1069.82645226,0.00011099,2]
[348766465,1736776253080,-1069.82645226,0.00011099,2]
[348766466,1736776253090,-1069.82645226,0.00011099,2]
[348766467,1736776253100,-1069.82645226,0.00011099,2]
[348766468,1736776253113,-1100.0,0.00011124,2]
[348766469,1736776253123,-1069.82645226,0.00011177,2]
[348766470,1736776253133,-687.73825975,0.00011193,2]
[348766471,1736776253143,-1000.0,0.00011211,2]
[348766472,1736776253153,-1936.63,0.00011265,2]
[348766473,1736776253163,-1858.87,0.00011265,2]
[348766474,1736776253174,-500.0,0.00011265,2]
[348766475,1736776253184,-487.93,0.00011287,2]
[348766476,1736776253194,-687.73825975,0.00011307,2]
[348766477,1736776253205,-705.48,0.00011364,2]
[348766478,1736776253215,-500.0,0.00011364,2]
[348766479,1736776253225,-685.75,0.00011364,2]
[348766480,1736776253235,-500.0,0.00011365,2]
[348766481,1736776253245,-1565.28,0.00011365,2]
[348766482,1736776253256,-500.0,0.00011365,2]
[348766483,1736776253266,-500.0,0.00011365,2]
[348766484,1736776253276,-500.0,0.00011365,2]
[348766485,1736776253286,-1938.55,0.00011365,2]
[348766486,1736776253296,-614.34,0.00011365,2]
[348766487,1736776253306,-652.92,0.00011365,2]
[348766488,1736776253316,-893.86,0.00011365,2]
[348766489,1736776253326,-902.95,0.00011365,2]
[348766490,1736776253336,-596.76,0.00011365,2]
[348766491,1736776253345,-1883.33,0.00011365,2]
[348766492,1736776253355,-1014.93,0.00011365,2]
[348766493,1736776253365,-1197.82,0.00011365,2]
[348766494,1736776253375,-1917.84,0.00011365,2]
[348766495,1736776253384,-1454.9,0.00011365,2]
[348766496,1736776253394,-2653.24,0.00011365,2]
[348766497,1736776253404,-934.46,0.00011365,2]
[348766498,1736776253414,-500.0,0.00011365,2]
[348766499,1736776253424,-835.85,0.00011365,2]
[348766500,1736776253434,-500.0,0.00011365,2]
[348766501,1736776253444,-903.99,0.00011365,2]
[348766502,1736776253453,-703.43,0.00011365,2]
[348766503,1736776253463,-946.03,0.00011365,2]
[348766504,1736776253473,-1295.35,0.00011365,2]
[348766505,1736776253482,-575.35,0.00011365,2]
[348766506,1736776253492,-544.9,0.00011365,2]
[348766507,1736776253501,-1654.45,0.00011365,2]
[348766508,1736776253511,-1221.37,0.00011365,2]
[348766509,1736776253521,-500.0,0.00011365,2]
[348766510,1736776253531,-1929.43,0.00011365,2]
[348766511,1736776253542,-1057.32,0.00011365,2]
[348766512,1736776253552,-500.0,0.00011365,2]
[348766513,1736776253562,-735.37,0.00011365,2]
[348766514,1736776253572,-1529.81,0.00011365,2]
[348766515,1736776253582,-918.13,0.00011365,2]
[348766516,1736776253591,-993.5,0.00011365,2]
[348766517,1736776253601,-500.0,0.00011365,2]
[348766518,1736776253611,-701.63,0.00011365,2]
[348766519,1736776253622,-500.0,0.00011365,2]
[348766520,1736776253632,-1208.05,0.00011365,2]
[348766521,1736776253642,-500.0,0.00011365,2]
[348766522,1736776253652,-1040.14,0.00011365,2]
[348766523,1736776253662,-628.72947378,0.00011365,2]
[348766524,1736776253672,-654.85,0.00011365,2]
[348766525,1736776253682,-876.4,0.00011365,2]
[348766526,1736776253692,-500.0,0.00011365,2]
[348766527,1736776253702,-543.55,0.00011365,2]
[348766528,1736776253713,-1479.01,0.00011365,2]
[348766529,1736776253723,-500.0,0.00011365,2]
[348766530,1736776253733,-1079.21,0.00011365,2]
[348766531,1736776253743,-500.0,0.00011366,2]
[348766532,1736776253753,-500.0,0.00011366,2]
[348766533,1736776253763,-500.0,0.00011366,2]
[348766534,1736776253772,-500.0,0.00011366,2]
[348766535,1736776253783,-354.6457884,0.00011366,2]
[348766536,1736776253794,-500.0,0.00011366,2]
[348766537,1736776253804,-232.40506639,0.00011366,2]
[348766538,1736776253814,-500.0,0.00011366,2]
[348766539,1736776253824,-500.0,0.00011366,2]
[348766540,1736776253834,-500.0,0.00011366,2]
[348766541,1736776253845,-500.0,0.00011366,2]
[348766542,1736776253855,-500.0,0.00011366,2]
[348766543,1736776253864,-500.0,0.00011366,2]
[348766544,1736776253874,-500.0,0.00011366,2]
[348766545,1736776253884,-500.0,0.00011366,2]
[348766546,1736776253894,-500.0,0.00011366,2]
[348766547,1736776253904,-500.0,0.00011366,2]
[348766548,1736776253914,-500.0,0.00011366,2]
[348766549,1736776253924,-718.94,0.00011366,2]
[348766550,1736776253934,-500.0,0.00011366,2]
[348766551,1736776253946,-3474.46,0.00011366,2]
[348766552,1736776254160,-555.0239191,0.00011366,2]
[348766553,1736776254170,-500.0,0.00011366,2]
[348766554,1736776254180,-886.08,0.00011366,2]
[348766555,1736776254189,-500.0,0.00011366,2]
[348766556,1736776254199,-896.88,0.00011366,2]
[348766557,1736776254208,-1512.56,0.00011366,2]
[348766558,1736776254219,-500.0,0.00011366,2]
[348766559,1736776254228,-500.0,0.00011366,2]
[348766560,1736776254237,-1258.56,0.00011366,2]
[348766561,1736776254246,-2572.0,0.00011366,2]
[348766562,1736776254255,-152.47870619,0.00011366,2]
[348766563,1736776254264,-500.0,0.00011366,2]
[348766564,1736776254274,-761.07,0.00011366,2]
[348766565,1736776254283,-1619.16,0.00011366,2]
[348766566,1736776254293,-500.0,0.00011366,2]
[348766567,1736776254302,-500.0,0.00011366,2]
[348766568,1736776254312,-1219.72,0.00011366,2]
[348766569,1736776254321,-4519.27,0.00011366,2]
[348766570,1736776254330,-882.41,0.00011366,2]
[348766571,1736776254340,-1086.13,0.00011366,2]
[348766572,1736776254350,-542.09,0.00011366,2]
[348766573,1736776254360,-500.0,0.00011366,2]
[348766574,1736776254369,-2653.16,0.00011366,2]
[348766575,1736776254379,-500.0,0.00011367,2]
[348766576,1736776254388,-500.0,0.00011367,2]
[348766577,1736776254397,-500.0,0.00011367,2]
[348766578,1736776254406,-500.0,0.00011367,2]
[348766579,1736776254415,-500.0,0.00011367,2]
[348766580,1736776254424,-500.0,0.00011367,2]
[348766581,1736776254433,-500.0,0.00011367,2]
[348766582,1736776254442,-500.0,0.00011367,2]
[348766583,1736776254451,-533.11,0.00011367,2]
[348766584,1736776254460,-500.0,0.00011367,2]
[348766585,1736776254470,-500.0,0.00011367,2]
[348766586,1736776254480,-575.22,0.00011367,2]
[348766587,1736776254489,-500.0,0.00011367,2]
[348766588,1736776254498,-500.0,0.00011367,2]
[348766589,1736776254508,-500.0,0.00011367,2]
[348766590,1736776254517,-500.0,0.00011367,2]
[348766591,1736776254526,-631.75,0.00011367,2]
[348766592,1736776254535,-500.0,0.00011367,2]
[348766593,1736776254545,-500.0,0.00011367,2]
[348766594,1736776254554,-214.25803899,0.00011367,2]
[348766595,1736776254564,-544.1,0.00011367,2]
[348766596,1736776254574,-500.0,0.00011367,2]
[348766597,1736776254583,-500.0,0.00011367,2]
[348766598,1736776254592,-527.28,0.00011367,2]
[348766599,1736776254602,-500.0,0.00011367,2]
[348766600,1736776254611,-500.0,0.00011367,2]
[348766601,1736776254620,-500.0,0.00011367,2]
[348766602,1736776254630,-500.0,0.00011367,2]
[348766603,1736776254639,-613.61,0.00011367,2]
[348766604,1736776254649,-500.0,0.00011367,2]
[348766605,1736776254659,-500.0,0.00011367,2]
[348766606,1736776254669,-500.0,0.00011367,2]
[348766607,1736776254680,-500.0,0.00011367,2]
[348766608,1736776254690,-500.0,0.00011367,2]
[348766609,1736776254699,-525.92,0.00011367,2]
[348766610,1736776254709,-500.0,0.00011367,2]
[348766611,1736776254719,-500.0,0.00011367,2]
[348766612,1736776254729,-500.0,0.00011367,2]
[348766613,1736776254738,-500.0,0.00011367,2]
[348766614,1736776254748,-500.0,0.00011367,2]
[348766615,1736776254757,-500.0,0.00011367,2]
[348766616,1736776254766,-514.31,0.00011367,2]
[348766617,1736776254776,-500.0,0.00011367,2]
[348766618,1736776254785,-500.0,0.00011367,2]
[348766619,1736776254795,-500.0,0.00011367,2]
[348766620,1736776254804,-500.0,0.00011367,2]
[348766621,1736776254813,-326.78,0.00011367,2]
[348766622,1736776254823,-500.0,0.00011367,2]
[348766623,1736776254833,-500.0,0.00011367,2]
[348766624,1736776254843,-500.0,0.00011367,2]